bitfinex/quotes_ETHUSD_20240612
["timestamp","ask_amount","ask_price","bid_price","bid_amount"]
[1718173879337,10.26883347,3515.4,3515.3,1.0]
[1718173879510,6.71762,3515.4,3515.3,1.0]
[1718173880314,2.84462,3515.4,3515.3,1.0]
[1718173880609,3.71731,3515.8,3515.3,1.0]
[1718173880811,2.84431,3515.8,3515.3,1.0]
[1718173881014,7.41,3516.2,3515.4,0.14402101]
[1718173881015,10.254,3516.2,3515.4,0.14402101]
[1718173881330,10.254,3516.2,3515.5,0.873]
[1718173881540,10.254,3516.2,3515.5,0.92988417]
[1718173881902,10.254,3516.2,3515.6,0.14389499]
[1718173882405,3.0,3516.1,3515.6,0.14389499]
[1718173882801,10.254,3516.2,3515.6,0.14389499]
[1718173883001,7.41,3516.2,3515.7,2.56008113]
[1718173883210,7.41,3516.2,3515.8,0.1436256]
[1718173883503,7.41,3516.2,3515.7,2.56008113]
[1718173883730,7.41,3516.2,3515.9,0.14356261]
[1718173883924,7.41,3516.2,3515.8,0.1436256]
[1718173884128,7.41,3516.2,3516.0,0.14352177]
[1718173884307,7.41,3516.2,3515.9,0.14317366]
[1718173884507,0.873,3516.4,3516.1,0.14304768]
[1718173884720,0.55,3516.3,3516.0,0.14311067]
[1718173884918,0.55,3516.3,3516.2,0.1429847]
[1718173885117,1.423,3516.4,3516.1,0.14304768]
[1718173885319,3.0,3516.5,3515.7,2.4084]
[1718173885320,3.0,3516.5,3516.2,0.14296933]
[1718173885720,3.0,3516.5,3515.8,0.05688401]
[1718173886020,0.873,3516.4,3515.8,0.73463577]
[1718173886332,0.873,3516.4,3515.9,0.14313614]
[1718173888130,3.873,3516.5,3515.9,0.14313614]
[1718173890245,0.873,3516.1,3515.9,0.14313614]
[1718173890426,3.0,3516.5,3515.9,0.14313614]
[1718173890606,0.873,3516.1,3515.7,2.4084]
[1718173890942,0.873,3516.1,3515.8,0.14292167]
[1718173891246,0.873,3516.1,3515.7,2.4084]
[1718173891401,0.873,3516.1,3515.9,0.14285867]
[1718173891607,0.873,3516.1,3515.7,2.4084]
[1718173891819,0.873,3516.1,3515.8,0.14292167]
[1718173892352,0.873,3516.1,3515.7,2.4084]
[1718173892513,0.873,3516.1,3515.9,0.14285867]
[1718173892708,0.873,3516.1,3515.8,0.14292167]
[1718173893017,0.873,3516.1,3515.9,0.14285867]
[1718173893403,0.873,3516.1,3515.7,2.4084]
[1718173893603,0.873,3516.1,3515.8,0.14292167]
[1718173893830,0.873,3516.1,3515.7,2.75303257]
[1718173894043,0.873,3516.1,3515.9,0.14285867]
[1718173894243,0.873,3516.1,3515.8,0.14292167]
[1718173894443,0.873,3516.1,3516.0,0.14279568]
[1718173894642,0.873,3516.1,3515.9,0.14285867]
[1718173894849,0.873,3516.1,3516.0,0.14279568]
[1718173895214,0.873,3516.1,3515.7,2.4084]
[1718173895545,0.873,3516.1,3515.8,0.14292167]
[1718173896048,0.873,3516.1,3515.9,0.14285867]
[1718173896417,0.873,3516.1,3515.7,2.4084]
[1718173896622,0.873,3516.1,3515.8,0.14292167]
[1718173897043,0.873,3516.1,3515.7,2.4084]
[1718173897248,0.873,3516.1,3515.9,0.14285867]
[1718173897582,3.71692,3516.3,3515.8,0.14292167]
[1718173897757,3.71692,3516.3,3516.0,0.14279568]
[1718173897958,3.71692,3516.3,3515.9,0.14285867]
[1718173898132,3.71692,3516.3,3516.1,0.1427327]
[1718173898333,3.71692,3516.3,3516.0,0.14279568]
[1718173898546,3.71692,3516.3,3516.2,0.14266971]
[1718173898723,4.26692,3516.3,3516.1,0.1427327]
[1718173898924,3.71692,3516.3,3515.7,2.4084]
[1718173899130,3.71692,3516.3,3516.2,0.14266971]
[1718173899336,4.26692,3516.3,3515.7,2.4084]
[1718173899530,3.71692,3516.3,3515.7,2.4084]
[1718173899838,3.71692,3516.3,3515.8,0.14292167]
[1718173900259,3.71692,3516.3,3515.7,2.4084]
[1718173900462,3.71692,3516.3,3515.9,0.14285867]
[1718173900646,3.71692,3516.3,3515.8,0.14292167]
[1718173900853,3.71692,3516.3,3516.0,0.14281872]
[1718173901035,3.71692,3516.3,3515.9,0.14288171]
[1718173901241,3.71692,3516.3,3516.1,0.14275573]
[1718173901558,3.71692,3516.3,3516.0,0.14281872]
[1718173901756,3.71692,3516.3,3516.2,0.14269275]
[1718173901929,4.26692,3516.3,3516.1,0.14275573]
[1718173902120,4.26692,3516.3,3515.7,2.4084]
[1718173902321,4.26692,3516.3,3516.2,0.14269275]
[1718173902550,4.26692,3516.3,3515.7,2.4084]
[1718173902938,4.26692,3516.3,3515.8,0.1429447]
[1718173903364,4.26692,3516.3,3515.7,2.4084]
[1718173903668,4.26692,3516.3,3515.8,0.1429447]
[1718173904169,4.26692,3516.3,3515.7,2.4084]
[1718173904371,4.26692,3516.3,3515.9,0.14288171]
[1718173904575,4.26692,3516.3,3515.8,0.1429447]
[1718173904792,4.26692,3516.3,3516.0,0.14281872]
[1718173904953,4.26692,3516.3,3516.1,0.14275573]
[1718173905156,4.26692,3516.3,3515.7,2.4084]
[1718173905479,4.26692,3516.3,3515.8,0.1429447]
[1718173905838,4.26692,3516.3,3515.5,0.59489362]
[1718173906176,4.26692,3516.3,3515.9,0.14288171]
[1718173906379,5.228782,3516.3,3516.0,0.14281872]
[1718173906578,5.228782,3516.3,3515.5,0.59489362]
[1718173906767,4.26692,3516.3,3515.6,0.1430707]
[1718173909086,3.39392,3516.3,3515.6,0.1430707]
[1718173909246,3.0,3516.5,3515.9,2.4629]
[1718173909449,3.0,3516.6,3515.9,2.4629]
[1718173909694,3.55,3516.6,3516.0,0.14262739]
[1718173910956,5.13924,3516.5,3516.0,0.14262739]
[1718173911157,0.873,3516.2,3515.8,0.59489362]
[1718173911579,0.873,3516.2,3515.6,6.01917341]
[1718173911580,0.873,3516.2,3515.9,0.14261473]
[1718173911884,0.873,3516.2,3515.6,5.72165362]
[1718173912088,3.873,3516.4,3516.0,0.14255174]
[1718173912291,5.570224,3516.4,3515.6,5.72165362]
[1718173912461,3.873,3516.4,3516.1,0.14248875]
[1718173912666,3.873,3516.4,3515.6,5.72165362]
[1718173912986,3.873,3516.4,3516.2,0.14231502]
[1718173913176,3.873,3516.4,3516.3,0.1420219]
[1718173913375,3.873,3516.4,3515.6,5.72165362]
[1718173913376,5.570224,3516.4,3515.6,5.72165362]
[1718173913692,3.873,3516.4,3515.7,0.14242191]
[1718173915460,3.0,3516.4,3515.7,0.14242191]
[1718173915655,3.873,3516.4,3515.7,0.14242191]
[1718173915881,2.8439,3516.3,3515.7,0.14242191]
[1718173916186,3.3939,3516.3,3515.7,0.14242191]
[1718173921695,3.3939,3516.3,3515.8,2.4528]
[1718173922080,3.3939,3516.3,3515.9,0.14245367]
[1718173922499,3.3939,3516.3,3515.6,5.76735362]
[1718173922979,3.3939,3516.3,3515.7,0.14246889]
[1718173923411,3.3939,3516.3,3515.7,0.73736251]
[1718173923624,3.3939,3516.3,3515.7,0.14246889]
[1718173923625,2.8443,3515.8,3515.7,0.14246889]
[1718173923927,3.3943,3515.8,3515.7,0.14246889]
[1718173924494,3.3943,3515.8,3515.5,0.59489362]
[1718173924695,4.2673,3515.8,3515.7,0.14251319]
[1718173924878,4.69403,3515.8,3515.6,0.14259833]
[1718173925206,4.69403,3515.8,3515.7,0.14253534]
[1718173925412,4.69403,3515.8,3515.3,1.59489362]
[1718173925585,4.2673,3515.8,3515.5,0.59489362]
[1718173925789,4.2673,3515.8,3515.6,0.14262048]
[1718173926277,4.2673,3515.8,3515.6,0.7375141]
[1718173926476,4.2673,3515.8,3515.6,0.14262048]
[1718173926887,2.8194,3515.7,3515.6,0.14262048]
[1718173928475,3.11380766,3515.7,3515.6,0.14262048]
[1718173928915,6.11380766,3515.7,3515.6,0.14262048]
[1718173929086,2.84448,3515.6,3515.3,1.0]
[1718173929287,0.873,3515.4,3515.3,1.0]
[1718173929690,1.85612877,3515.4,3515.3,1.0]
[1718173930228,2.40612877,3515.4,3515.3,1.1430011]
[1718173930930,2.40612877,3515.4,3515.3,1.0]
[1718173931385,4.67372877,3515.4,3515.3,1.0]
[1718173931583,7.67372877,3515.4,3515.3,1.0]
[1718173934230,6.80072877,3515.4,3515.3,1.0]
[1718173934439,5.40612877,3515.4,3515.3,1.0]
[1718173934987,2.40612877,3515.4,3515.3,1.0]
[1718173936230,0.55,3515.4,3515.3,1.0]
[1718173936400,3.0,3515.5,3515.3,1.0]
[1718173936729,3.0,3515.5,3515.3,1.14387823]
[1718173940796,3.873,3515.5,3515.3,1.14387823]
[1718173947152,3.0,3515.5,3515.3,1.14387823]
[1718173947450,7.41,3515.9,3515.3,2.01687823]
[1718173947622,7.41,3515.9,3515.4,3.00386282]
[1718173947826,7.41,3515.9,3515.5,0.14377127]
[1718173948038,7.41,3515.9,3515.4,3.00386282]
[1718173948262,7.41,3515.9,3515.5,0.14377127]
[1718173948750,7.41,3515.9,3515.4,3.00386282]
[1718173949046,7.41,3515.9,3515.5,0.14360449]
[1718173949550,0.55,3515.8,3515.4,3.59875644]
[1718173949756,0.55,3515.8,3515.6,0.14349155]
[1718173949952,0.55,3515.8,3515.5,0.77997155]
[1718173950250,0.55,3515.8,3515.6,0.14349155]
[1718173954821,0.55,3515.8,3515.4,0.73606282]
[1718173955046,0.55,3515.8,3515.5,0.14334712]
[1718173955253,0.55,3515.8,3515.3,1.0]
[1718173955454,0.55,3515.8,3515.4,0.14333756]
[1718173955667,0.873,3515.5,3515.4,0.14333756]
[1718173955854,1.423,3515.5,3515.4,0.14333756]
[1718173956075,1.423,3515.5,3515.3,1.0]
[1718173956076,2.435929,3515.5,3515.3,1.0]
[1718173956362,3.39462,3515.4,3515.3,1.0]
[1718173956522,6.39462,3515.4,3515.3,1.0]
[1718173960541,7.26762,3515.4,3515.3,1.0]
[1718173962962,9.70802,3515.4,3515.3,1.0]
[1718173963163,10.7801149,3515.4,3515.3,1.0]
[1718173964467,9.9071149,3515.4,3515.3,1.0]
[1718173964654,10.7801149,3515.4,3515.3,1.0]
[1718173967805,6.39462,3515.4,3515.3,1.0]
[1718173967974,7.26762,3515.4,3515.3,1.0]
[1718173968379,7.26762,3515.4,3515.3,1.14411905]
[1718173968932,6.39462,3515.4,3515.3,1.14411905]
[1718173969139,7.26762,3515.4,3515.3,1.14411905]
[1718173975743,6.39462,3515.4,3515.3,1.14411905]
[1718173982424,7.41,3515.9,3515.3,1.50277096]
[1718173982585,3.55,3515.8,3515.4,2.3993]
[1718173982768,3.55,3515.8,3515.4,2.54322446]
[1718173982966,3.0,3515.8,3515.4,2.54322446]
[1718173987373,0.873,3515.9,3515.4,2.54322446]
[1718173987599,0.55,3515.8,3515.4,2.99290146]
[1718173989108,0.55,3515.9,3515.4,2.99290146]
[1718173991820,0.55,3515.9,3515.4,3.86590146]
[1718173991983,3.0,3516.0,3515.4,3.86590146]
[1718173992313,3.0,3516.0,3515.5,0.8664227]
[1718173992821,3.0,3516.0,3515.5,1.01010019]
[1718173993994,3.0,3516.0,3515.6,2.475]
[1718173994201,3.0,3516.1,3515.6,2.61856407]
[1718174005001,2.84408,3516.1,3515.6,2.61856407]
[1718174005356,3.0,3516.0,3515.6,3.25881981]
[1718174010349,3.0,3516.0,3515.6,2.61856407]
[1718174012241,2.84423,3515.9,3515.6,2.61856407]
[1718174014322,2.84423,3515.9,3515.6,0.14356407]
[1718174014738,2.84423,3515.9,3515.4,2.475]
[1718174014915,2.84423,3515.9,3515.7,0.14333793]
[1718174015312,2.84423,3515.9,3515.4,2.475]
[1718174015508,2.84423,3515.9,3515.8,0.14327493]
[1718174015709,2.84423,3515.9,3515.4,2.475]
[1718174015940,2.84423,3515.9,3515.8,0.14328104]
[1718174016111,2.84423,3515.9,3515.4,2.475]
[1718174016307,2.84423,3515.9,3515.8,0.14328104]
[1718174016540,2.84423,3515.9,3515.4,3.06989362]
[1718174016749,2.84423,3515.9,3515.5,0.14347005]
[1718174016954,2.84423,3515.9,3515.4,3.06989362]
[1718174017418,2.84423,3515.9,3515.5,0.14347005]
[1718174017620,2.84423,3515.9,3515.4,3.06989362]
[1718174017818,2.84423,3515.9,3515.6,0.14333447]
[1718174018155,2.84423,3515.9,3515.7,0.14329067]
[1718174018354,2.84423,3515.9,3515.4,3.06989362]
[1718174018519,2.84423,3515.9,3515.8,0.14324982]
[1718174018719,2.84423,3515.9,3515.4,3.06989362]
[1718174019048,2.84423,3515.9,3515.5,0.14346099]
[1718174019551,2.84423,3515.9,3515.4,3.06989362]
[1718174019731,2.84423,3515.9,3515.5,0.14348314]
[1718174019932,2.84423,3515.9,3515.4,3.06989362]
[1718174020454,2.84423,3515.9,3515.5,0.14348925]
[1718174020626,2.84423,3515.9,3515.4,3.06989362]
[1718174020949,2.84423,3515.9,3515.5,0.14348925]
[1718174021148,2.84423,3515.9,3515.4,3.06989362]
[1718174021332,2.84423,3515.9,3515.5,0.14348925]
[1718174021720,2.84423,3515.9,3515.6,0.14339798]
[1718174022253,2.84423,3515.9,3515.5,0.59489362]
[1718174022454,2.84423,3515.9,3515.7,0.14335713]
[1718174022661,2.84423,3515.9,3515.5,0.59489362]
[1718174022903,2.84423,3515.9,3515.8,0.14330024]
[1718174023042,2.84423,3515.9,3515.5,0.59489362]
[1718174023653,2.84423,3515.9,3515.6,0.14342624]
[1718174024654,2.84423,3515.9,3515.6,0.73831986]
[1718174026446,2.84423,3515.9,3515.6,0.14342624]
[1718174027640,2.84438,3515.7,3515.6,0.14342624]
[1718174028065,3.39438,3515.7,3515.6,0.14342624]
[1718174028381,3.39438,3515.7,3515.6,0.14343165]
[1718174028685,3.39438,3515.7,3515.4,0.59489362]
[1718174028861,3.39438,3515.7,3515.6,0.14343165]
[1718174029059,3.39438,3515.7,3515.4,0.59489362]
[1718174029288,3.39438,3515.7,3515.6,0.14343776]
[1718174029482,3.39438,3515.7,3515.5,0.14350077]
[1718174029684,3.39438,3515.7,3515.6,0.14343776]
[1718174030061,4.2119783,3515.7,3515.4,0.59489362]
[1718174030271,2.84454,3515.5,3515.3,1.59489362]
[1718174030576,0.55,3515.4,3515.3,1.59489362]
[1718174033063,0.55,3515.4,3515.3,1.0]
[1718174033653,0.55,3515.4,3515.3,1.59462717]
[1718174034583,0.55,3515.4,3515.3,1.0]
[1718174034958,0.55,3515.4,3515.3,1.73833711]
[1718174035579,0.55,3515.4,3515.3,2.03612335]
[1718174035980,0.55,3515.4,3515.3,1.14370994]
[1718174036565,0.55,3515.4,3515.3,2.03612335]
[1718174037498,0.55,3515.4,3515.3,1.14370994]
[1718174038001,0.55,3515.4,3515.3,2.03612335]
[1718174038786,1.423,3515.4,3515.3,2.03612335]
[1718174038988,2.094763,3515.4,3515.3,1.0]
[1718174039204,5.094763,3515.4,3515.3,1.0]
[1718174039703,4.221763,3515.4,3515.3,1.0]
[1718174039895,5.094763,3515.4,3515.3,1.0]
[1718174046106,3.55,3515.4,3515.3,1.0]
[1718174046311,0.55,3515.4,3515.3,1.0]
[1718174046513,0.55,3515.4,3515.3,1.13868868]
[1718174047108,3.8394,3515.4,3515.3,1.13868868]
[1718174047318,6.8394,3515.4,3515.3,1.13868868]
[1718174047612,8.107793,3515.4,3515.3,1.0]
[1718174054354,3.55,3515.4,3515.3,1.0]
[1718174054581,3.0,3515.5,3515.4,2.4492]
[1718174054724,7.41,3515.8,3515.4,2.4492]
[1718174055032,7.41,3515.8,3515.4,2.58817588]
[1718174056259,3.0,3515.7,3515.5,0.35881759]
[1718174056486,7.41,3515.8,3515.5,1.37080011]
[1718174060383,3.0,3516.1,3515.5,1.37080011]
[1718174060584,3.55,3516.0,3515.5,1.37080011]
[1718174060786,0.55,3516.0,3515.6,0.54144708]
[1718174060980,0.55,3516.1,3515.6,0.54144708]
[1718174061174,0.55,3516.1,3515.7,0.13861914]
[1718174062015,0.873,3516.0,3515.7,0.13861914]
[1718174062583,0.55,3515.9,3515.5,0.35881759]
[1718174062951,0.55,3515.9,3515.6,0.13874861]
[1718174065693,3.7173,3515.8,3515.6,0.13874861]
[1718174065992,0.55,3515.7,3515.4,0.59447073]
[1718174066686,0.55,3515.7,3515.3,1.0]
[1718174068795,2.84448,3515.6,3515.3,1.0]
[1718174069305,3.71748,3515.6,3515.3,1.0]
[1718174069596,2.84462,3515.4,3515.3,1.0]
[1718174069797,3.39462,3515.4,3515.3,1.0]
[1718174071162,2.84462,3515.4,3515.3,1.0]
[1718174072269,3.71762,3515.4,3515.3,1.0]
[1718174072478,4.26762,3515.4,3515.3,1.0]
[1718174072683,3.39462,3515.4,3515.3,1.0]
[1718174073225,4.26762,3515.4,3515.3,1.0]
[1718174076444,3.39462,3515.4,3515.3,1.0]
[1718174089067,4.694382,3515.4,3515.3,1.0]
[1718174089263,7.694382,3515.4,3515.3,1.0]
[1718174093574,6.821382,3515.4,3515.3,1.0]
[1718174093771,7.694382,3515.4,3515.3,1.0]
[1718174102203,6.39462,3515.4,3515.3,1.0]
[1718174102486,8.77588508,3515.9,3515.4,2.4346]
[1718174102656,7.41,3515.9,3515.4,2.4346]
[1718174102850,7.41,3515.9,3515.5,0.13894588]
[1718174103158,7.41,3515.9,3515.4,2.4346]
[1718174103357,7.41,3515.9,3515.6,0.13888287]
[1718174103656,7.41,3515.9,3515.7,0.13873125]
[1718174103856,7.41,3515.9,3515.4,2.92480707]
[1718174104056,7.41,3515.9,3515.8,0.13869041]
[1718174104256,7.41,3515.9,3515.4,2.92480707]
[1718174104257,10.41,3515.9,3515.4,2.92480707]
[1718174104597,3.0,3515.8,3515.5,0.47978071]
[1718174105168,0.55,3515.7,3515.5,0.47978071]
[1718174105794,3.0,3515.8,3515.5,0.47978071]
[1718174105987,3.0,3515.8,3515.5,1.35278071]
[1718174106778,3.0,3515.8,3515.5,0.47978071]
[1718174106980,3.0,3515.8,3515.6,0.53818514]
[1718174109365,3.0,3515.8,3515.4,2.4346]
[1718174109900,0.55,3515.7,3515.4,2.4346]
[1718174110085,0.55,3515.7,3515.5,0.13828983]
[1718174110401,0.55,3515.7,3515.4,2.4346]
[1718174110573,0.55,3515.7,3515.6,0.13822683]
[1718174110892,0.55,3515.7,3515.6,0.13828344]
[1718174111072,0.55,3515.7,3515.4,2.4346]
[1718174111273,0.55,3515.7,3515.6,0.13828344]
[1718174111460,0.55,3515.7,3515.4,3.29852441]
[1718174111657,0.55,3515.7,3515.6,0.13819482]
[1718174111860,0.55,3515.7,3515.4,3.29852441]
[1718174112164,0.55,3515.7,3515.6,0.13819482]
[1718174112361,0.55,3515.7,3515.5,0.11025782]
[1718174112362,2.84446,3515.6,3515.5,0.11025782]
[1718174112585,2.84446,3515.6,3515.3,1.0]
[1718174112586,7.26746,3515.6,3515.3,1.0]
[1718174112795,0.873,3515.4,3515.3,1.0]
[1718174113177,1.423,3515.4,3515.3,1.0]
[1718174113375,2.323076,3515.4,3515.3,1.0]
[1718174114866,1.450076,3515.4,3515.3,1.0]
[1718174115482,0.55,3515.4,3515.3,1.0]
[1718174115679,0.55,3515.4,3515.3,3.3603]
[1718174116698,1.423,3515.4,3515.3,1.0]
[1718174119869,1.423,3515.4,3515.3,1.13294575]
[1718174120374,0.55,3515.4,3515.3,1.13294575]
[1718174131531,0.55,3515.4,3515.3,1.18652569]
[1718174133740,0.55,3515.4,3515.3,1.18652569]
[1718174138228,3.0,3515.5,3515.3,1.18652569]
[1718174138448,3.0,3515.8,3515.4,2.4594]
[1718174138614,0.55,3515.7,3515.4,2.4594]
[1718174138946,0.55,3515.7,3515.5,0.18636909]
[1718174139100,0.55,3515.7,3515.4,2.4594]
[1718174139296,0.55,3515.7,3515.5,0.18629131]
[1718174139543,0.55,3515.7,3515.4,2.4594]
[1718174139751,3.0,3515.8,3515.4,2.4594]
[1718174139752,3.0,3515.8,3515.5,0.55282657]
[1718174142231,3.0,3515.8,3515.5,0.18629131]
[1718174142636,3.873,3515.9,3515.4,2.4594]
[1718174142846,3.873,3515.9,3515.6,0.18608119]
[1718174143015,3.873,3515.9,3515.5,0.18614572]
[1718174143526,3.873,3515.9,3515.6,0.18599044]
[1718174143701,3.873,3515.9,3515.4,2.4594]
[1718174143901,3.873,3515.9,3515.5,0.61198574]
[1718174145638,3.0,3515.9,3515.5,0.61198574]
[1718174146214,7.41,3516.3,3515.5,1.54187519]
[1718174146537,7.41,3516.3,3515.6,2.2823]
[1718174146842,7.41,3516.3,3515.7,0.18618669]
[1718174147038,7.41,3516.3,3515.8,0.43613727]
[1718174147403,7.41,3516.3,3515.9,0.18605764]
[1718174147642,0.55,3516.2,3515.9,0.18605764]
[1718174148525,3.55,3516.3,3515.9,0.18605764]
[1718174150925,4.423,3516.3,3515.9,0.18605764]
[1718174155020,4.423,3516.3,3515.9,0.47650713]
[1718174155547,3.0,3516.3,3515.9,0.47650713]
[1718174155746,3.0,3516.3,3516.0,2.456]
[1718174156045,3.0,3516.3,3516.1,0.18562732]
[1718174160850,3.0,3516.3,3515.9,0.29044949]
[1718174161047,3.0,3516.3,3516.2,0.18556281]
[1718174161249,3.0,3516.3,3516.0,0.27599495]
[1718174161416,3.0,3516.3,3516.2,0.18556281]
[1718174161934,3.0,3516.3,3516.0,0.27599495]
[1718174162137,3.0,3516.3,3516.2,0.18553611]
[1718174162328,3.0,3516.3,3516.0,0.27599495]
[1718174162538,3.0,3516.3,3516.2,0.18553611]
[1718174162740,3.0,3516.3,3516.0,0.27599495]
[1718174162938,3.0,3516.3,3516.2,0.18553611]
[1718174163266,3.0,3516.3,3516.0,0.27599495]
[1718174163556,3.0,3516.3,3516.2,0.18553611]
[1718174163853,3.0,3516.3,3516.1,0.18560062]
[1718174164155,3.0,3516.3,3516.2,0.18553611]
[1718174164456,3.0,3516.3,3516.0,0.27599495]
[1718174164652,3.0,3516.3,3516.2,0.18553611]
[1718174164852,3.0,3516.3,3516.1,0.18560062]
[1718174165056,3.0,3516.3,3516.2,0.18553611]
[1718174165346,3.0,3516.3,3515.8,2.4695]
[1718174165653,3.0,3516.3,3516.2,0.18553611]
[1718174166318,3.0,3516.3,3515.8,2.4695]
[1718174166519,3.0,3516.3,3516.2,0.18553611]
[1718174167130,3.0,3516.3,3515.8,2.4695]
[1718174167332,3.0,3516.3,3516.2,0.18553611]
[1718174167531,3.0,3516.3,3515.8,2.4695]
[1718174167766,3.0,3516.3,3516.2,0.18553611]
[1718174167968,3.0,3516.3,3515.8,2.4695]
[1718174168136,3.0,3516.3,3516.2,0.18553611]
[1718174168465,3.0,3516.3,3515.8,2.4695]
[1718174168664,3.0,3516.3,3516.2,0.18553611]
[1718174168828,2.84401,3516.2,3515.8,2.4695]
[1718174169030,3.71701,3516.2,3515.6,2.4906]
[1718174169265,2.84401,3516.2,3515.7,0.3510486]
[1718174169468,3.71701,3516.2,3515.7,0.3510486]
[1718174170275,2.84428,3515.9,3515.8,0.18560345]
[1718174170579,3.39428,3515.9,3515.4,2.3612]
[1718174171263,3.39428,3515.9,3515.6,0.1857325]
[1718174179537,2.972,3516.3,3515.6,0.24262067]
[1718174179736,0.873,3516.4,3515.7,2.3804]
[1718174179997,0.873,3516.4,3515.8,0.63122848]
[1718174180177,3.873,3516.4,3515.8,0.63122848]
[1718174182649,3.0,3516.4,3515.8,0.63122848]
[1718174183158,3.0,3516.4,3515.8,1.22518367]
[1718174183159,3.873,3516.4,3515.8,1.22518367]
[1718174183352,3.873,3516.4,3515.9,0.73408665]
[1718174183556,3.873,3516.4,3516.0,0.18515225]
[1718174186198,2.84373,3516.5,3516.1,2.4108]
[1718174186487,0.55,3516.4,3516.2,0.18504593]
[1718174187249,7.41,3516.7,3516.2,0.18504593]
[1718174187453,0.55,3516.6,3516.2,0.18504593]
[1718174187779,0.55,3516.6,3516.3,0.31898011]
[1718174187984,0.55,3516.6,3516.4,0.18491695]
[1718174188205,3.55,3516.6,3516.3,0.31898011]
[1718174188361,3.55,3516.6,3516.4,0.18493963]
[1718174188560,3.55,3516.6,3516.3,0.31898011]
[1718174188784,3.55,3516.6,3516.4,0.18493963]
[1718174188952,3.55,3516.6,3516.3,0.31898011]
[1718174189155,3.55,3516.6,3516.4,0.18493963]
[1718174189354,3.55,3516.6,3516.3,0.31898011]
[1718174189560,0.55,3516.6,3516.4,0.18474133]
[1718174189886,0.55,3516.7,3516.3,0.31898011]
[1718174190264,0.55,3516.7,3516.4,0.18474133]
[1718174190789,0.55,3516.7,3516.1,3.00475519]
[1718174190992,0.55,3516.7,3516.2,0.18487032]
[1718174194972,3.873,3516.8,3516.2,0.18487032]
[1718174194973,3.873,3516.8,3516.2,3.08571658]
[1718174195188,3.0,3516.7,3516.2,3.08571658]
[1718174195376,0.873,3516.8,3516.2,3.08571658]
[1718174196692,3.0,3517.1,3516.2,3.08571658]
[1718174196892,1.423,3517.0,3516.4,2.3829]
[1718174197402,1.423,3517.0,3516.5,0.18469952]
[1718174207001,2.84342,3516.9,3516.5,0.18469952]
[1718174207327,3.0,3516.8,3516.5,0.18469952]
[1718174211917,2.84342,3516.9,3516.5,0.18469952]
[1718174212101,2.84342,3516.9,3516.6,0.39094538]
[1718174212303,0.55,3517.0,3516.7,2.4158]
[1718174212534,3.55,3517.1,3516.7,2.59970998]
[1718174215938,3.0,3517.1,3516.7,2.59970998]
[1718174216141,3.0,3517.4,3516.7,2.59970998]
[1718174216352,0.55,3517.3,3516.8,0.73011906]
[1718174216665,0.55,3517.3,3516.9,0.18401688]
[1718174218913,3.0,3517.4,3517.0,2.3108]
[1718174219234,3.0,3517.4,3517.1,0.18372422]
[1718174219440,3.0,3517.5,3517.1,0.18372422]
[1718174219611,3.0,3517.5,3517.0,2.3108]
[1718174219808,3.0,3517.5,3517.1,0.18372422]
[1718174220011,7.41,3517.6,3517.1,0.18372422]
[1718174220328,0.55,3517.5,3517.1,0.18372422]
[1718174224165,3.0,3517.9,3517.2,2.4256]
[1718174224321,0.873,3517.8,3517.2,2.4256]
[1718174224518,0.873,3517.8,3517.3,0.57678067]
[1718174226543,5.84262,3517.9,3517.3,0.57678067]
[1718174226544,3.0,3517.9,3517.3,0.1834695]
[1718174226745,0.873,3517.4,3517.3,0.1834695]
[1718174226949,1.423,3517.4,3516.7,2.4153]
[1718174227432,1.423,3517.4,3516.8,0.1837918]
[1718174227822,1.423,3517.4,3516.8,0.7874625]
[1718174229959,1.423,3517.4,3516.8,0.7594625]
[1718174234346,1.423,3517.4,3516.8,0.1557918]
[1718174235454,0.55,3517.4,3516.8,0.1557918]
[1718174237439,0.55,3517.4,3516.9,2.4728]
[1718174237642,0.55,3517.4,3517.0,0.18276387]
[1718174240247,0.55,3517.4,3516.7,2.3261]
[1718174240448,1.423,3517.4,3516.8,0.18285466]
[1718174241775,0.55,3517.4,3516.8,0.18285466]
[1718174244240,0.55,3517.4,3516.8,0.77680985]
[1718174244532,0.55,3517.4,3516.8,0.18285466]
[1718174244978,0.55,3517.4,3516.8,0.77680985]
[1718174245274,0.55,3517.4,3516.8,1.62313659]
[1718174246342,0.55,3517.4,3516.8,4.46661659]
[1718174248538,3.0,3517.7,3517.0,3.7163]
[1718174248744,3.0,3517.9,3517.2,2.84314]
[1718174249145,3.0,3517.9,3517.3,0.18257772]
[1718174249450,10.272694,3518.0,3517.3,3.05904501]
[1718174249664,11.145694,3518.0,3517.3,3.05904501]
[1718174249970,10.272694,3518.0,3517.3,3.05904501]
[1718174250174,0.55,3517.9,3517.4,2.89983588]
[1718174250479,7.430154,3518.0,3517.6,2.3827]
[1718174250675,7.430154,3518.0,3517.7,0.18210386]
[1718174250884,0.020154,3518.0,3517.7,0.18210386]
[1718174251245,0.020154,3518.0,3517.8,3.77253119]
[1718174251464,0.020154,3518.0,3517.9,0.18152957]
[1718174251662,0.020154,3518.0,3517.9,0.93144597]
[1718174252057,0.020154,3518.0,3517.9,1.52540116]
[1718174252270,0.020154,3518.0,3517.9,3.98980116]
[1718174252523,0.020154,3518.0,3517.9,3.39584597]